Cogmind - Beta 13 @@@ ROGUE MODE // 2024.04.01 @ 22:06:24 Player: JetmanJay Result: Destroyed by G-34 Mercenary with Small Laser Performance ------------- Evolutions (1) 500 Regions Visited (2) 400 Robots Destroyed (16) 80 Value Destroyed (463) 463 Prototype IDs (0) 0 Alien Tech Used (0) 0 Bonus (0) 0 TOTAL SCORE: 1443 Bonus ------- None Cogmind --------- Core Integrity 0/400 Matter 8/300 Energy 100/100 System Corruption 0% Temperature Cool (6) Movement Core (350) Ox6 Location -9/Materials Parts ------- > --- POWER (2) -------- (None) > --- PROPULSION (2) --- (None) > --- UTILITY (3) ------ Large Storage Unit Visual Processing Unit > --- WEAPON (2) ------- Mini Grenade Launcher > --- INVENTORY (15) --- Hover Unit Disposable Heat Sink Disposable Heat Sink Disposable Heat Sink Disposable Heat Sink High-capacity Battery (250) High-capacity Matter Pod (0) Peak State ------------ > --- POWER ------------ Light Ion Engine > --- PROPULSION ------- Aluminum Leg Aluminum Leg > --- UTILITY ---------- Heat Sink Large Storage Unit Visual Processing Unit > --- WEAPON ----------- Assault Rifle Grenade Launcher > --- INVENTORY -------- Disposable Heat Sink Disposable Heat Sink Disposable Heat Sink Disposable Heat Sink High-capacity Battery High-capacity Matter Pod [Rating: 10] Favorites ----------- Power Light Ion Engine Engine Light Ion Engine Propulsion Aluminum Leg Leg Aluminum Leg Wheel Wheel Utility Heat Sink Device Heat Sink Storage Large Storage Unit Processor Visual Processing Unit Weapon Assault Rifle Ballistic Gun Assault Rifle Launcher Grenade Launcher Build | -11 -10 -9 ------- Run | Yrd Mat Mat Slots Evolved 2 | . . 2 Power 1 | . . 1 Propulsion . | . . . Utility 1 | . . 1 Weapon . | . . . Parts Attached 17 | 7 8 2 Power 1 | 1 . . Engine 1 | 1 . . Core . | . . . Reactor . | . . . Propulsion 5 | 4 1 . Treads . | . . . Leg 3 | 2 1 . Wheel 2 | 2 . . Hover . | . . . Flight . | . . . Utility 5 | . 4 1 Device 2 | . 2 . Storage 1 | . 1 . Processor 2 | . 1 1 Hackware . | . . . Protection . | . . . Artifact . | . . . Weapon 6 | 2 3 1 Energy Gun . | . . . Energy Cannon . | . . . Ballistic Gun 4 | 2 2 . Ballistic Cannon . | . . . Launcher 2 | . 1 1 Special Weapon . | . . . Impact Weapon . | . . . Slashing Weapon . | . . . Piercing Weapon . | . . . Special Melee Weapon . | . . . Unidentified Prototypes . | . . . Parts Lost 6 | . . 6 Power 1 | . . 1 Propulsion 2 | . . 2 Utility 1 | . . 1 Weapon 2 | . . 2 Highest Loss Streak 2 | . . 2 To Critical Strikes . | . . . Average Slot Usage (%) 79 | . 91 68 Engine 8 | . 14 3 Leg 22 | . 28 17 Device 10 | . 12 8 Storage 7 | . 4 11 Processor 7 | . 3 11 Ballistic Gun 10 | . 14 7 Launcher 11 | . 13 9 Naked Turns . | . . . Heaviest Build 29 | 6 29 29 Greatest Support 20 | 20 20 20 Greatest Overweight (x) 6 | . 1 6 Average Overweight (x) . | . . 1 Largest Inventory Capacity 15 | 5 15 15 Average Capacity 10 | 5 8 15 Most Carried 7 | 3 5 7 Average Carried 4 | . 3 5 Final Capacity 15 | 5 15 15 Final Carried 7 | 1 5 7 Class Distribution -------------------- 100% | Mutant Dominant Class ---------------- Mutant | -10/Materials Mutant | -9/Materials Resources | -11 -10 -9 ----------- Run | Yrd Mat Mat Matter Collected 392 | 258 52 82 Remotely . | . . . Salvage Created 387 | 55 136 196 Parts 26 | 1 8 17 Haulers Intercepted . | . . . Recyclers Shooed . | . . . Parts Field Recycled . | . . . Retrieved Matter . | . . . Parts Self-Destructed . | . . . Prevented . | . . . Kills | -11 -10 -9 ------- Run | Yrd Mat Mat Combat Hostiles Destroyed 10 | 1 5 4 Guns 2 | 1 . 1 AOE 8 | . 5 3 Classes Destroyed 6 | 2 1 3 Worker 1 | 1 . . Builder 2 | . . 2 Recycler 1 | . . 1 Operator 2 | . 1 1 Grunt 9 | 1 5 3 Sentry 1 | . . 1 Best Kill Streak 5 | 1 4 5 Combat Bots Only 4 | 1 4 2 Max Kills in Single Turn 2 | 1 1 2 Gunslinging . | . . . Exploded 2 | . 1 2 Melee . | . . . Uniques/NPCs Destroyed . | . . . Combat | -11 -10 -9 -------- Run | Yrd Mat Mat Hostile Shots Fired 74 | 9 18 47 Missed 15 | 1 8 6 Damage Taken 1017 | 92 160 765 Core 422 | 12 10 400 Absorbed by Shields . | . . . Core Remaining (%) 93 | 95 91 . Volleys Fired 43 | 8 17 18 Largest 2 | 2 2 2 Hottest 50 | 40 50 50 Shots Fired 67 | 16 25 26 Gun 44 | 16 17 11 Cannon . | . . . Launcher 23 | . 8 15 Special . | . . . Kinetic 44 | 16 17 11 Thermal . | . . . Explosive 23 | . 8 15 Electromagnetic . | . . . Robot Hit Streak 9 | 5 7 9 Robot Miss Streak 3 | 2 3 2 Penetration Max . | . . . Secondary Targets . | . . . Shots Hit Robots 42 | 11 13 18 Core Hits 31 | 4 10 17 Critical Kills . | . . . Critical Parts Destroyed . | . . . Critical Strikes . | . . . Melee Attacks . | . . . Impact . | . . . Slashing . | . . . Piercing . | . . . Sneak Attacks . | . . . Combat Hostiles . | . . . Follow-up Attacks . | . . . Damage Inflicted 1087 | 122 431 534 Guns 298 | 122 98 78 Cannons . | . . . Explosions 788 | . 333 455 Melee . | . . . Ramming 1 | . . 1 Kinetic 298 | 122 98 78 Thermal . | . . . Explosive 788 | . 333 455 Electromagnetic . | . . . Impact . | . . . Slashing . | . . . Piercing . | . . . Highest Corruption . | . . . Average Corruption . | . . . Corruption Purged . | . . . Corruption Blocked . | . . . Overload Shots . | . . . Overflow Damage 56 | . 4 52 Projectiles . | . . . Explosions 56 | . 4 52 Melee . | . . . Knockbacks . | . . . Impact . | . . . Kinetic . | . . . Secondary . | . . . Self-Inflicted Damage 325 | . 48 277 Shots 13 | . 2 11 Rammed . | . . . Targets Rammed 1 | . . 1 Kicked 1 | . . 1 Crushed . | . . . Highest Temperature 12 | 12 . . Average Temperature 6 | 6 . . Received Heat Transfer 339 | 48 60 231 Siege Activations . | . . . Robots Corrupted . | . . . Combat Hostiles . | . . . Parts Fried . | . . . Impact Corruptions . | . . . Robots Melted . | . . . Combat Hostiles . | . . . Parts Melted . | . . . Heat Transferred . | . . . Parts Sabotaged . | . . . Parts Stolen . | . . . Parts Stripped . | . . . Power Chain Reactions . | . . . Alert | -11 -10 -9 ------- Run | Yrd Mat Mat Peak Influence 297 | 25 235 297 Initial 98 | . 16 98 Average 132 | 11 169 166 Maximum Alert Level 1 | . 1 1 Low Security (%) 64 | 100 33 72 Level 1 35 | . 66 27 Level 2 . | . . . Level 3 . | . . . Level 4 . | . . . Level 5 . | . . . High Security . | . . . Max Security . | . . . Squads Dispatched 3 | . 2 1 Investigation 2 | . 2 . Extermination . | . . . Reinforcement 1 | . . 1 Assault . | . . . Garrison . | . . . Intercept . | . . . Searches Triggered . | . . . Construction Impeded . | . . . Haulers Reinforced . | . . . Active Scanning Responses . | . . . Cargo Convoy Interrupts . | . . . Stealth | -11 -10 -9 --------- Run | Yrd Mat Mat Distress Signals 1 | . . 1 Communications Jammed . | . . . Distress Signals . | . . . Times Spotted 15 | 1 6 8 Peak Tracking Total 3 | 1 3 3 Tactical Retreats . | . . . Traps | -11 -10 -9 ------- Run | Yrd Mat Mat Traps Triggered . | . . . Indirectly . | . . . Trap Hack Attempts . | . . . Triggered . | . . . Disarmed . | . . . Reprogrammed . | . . . Reused . | . . . Traps Extracted . | . . . Installed . | . . . Triggered . | . . . Machines | -11 -10 -9 ---------- Run | Yrd Mat Mat Machines Disabled 5 | . 2 3 Max in Single Turn 2 | . 1 2 Machines Repaired . | . . . Machines Dismantled . | . . . Machines Sabotaged . | . . . Overloaded Fab Kills . | . . . Hacking | -11 -10 -9 --------- Run | Yrd Mat Mat Machines Accessed 3 | . 2 1 Terminals 2 | . 1 1 Fabricators . | . . . Repair Stations . | . . . Recycling Units 1 | . 1 . Scanalyzers . | . . . Garrison Access . | . . . Total Hacks 12 | . 10 2 Successful 9 | . 7 2 Failed 3 | . 3 . Catastrophic . | . . . Database Lockouts . | . . . Manual . | . . . Terminals 9 | . 7 2 Fabricators . | . . . Repair Stations . | . . . Recycling Units 3 | . 3 . Scanalyzers . | . . . Garrison Access . | . . . Terminal Hacks 8 | . 6 2 Record 3 | . 3 . Alert Level 2 | . 1 1 Maintenance Status 1 | . 1 . Security Status 1 | . 1 . Hauler Manifests 1 | . . 1 Fabricator Hacks . | . . . Repair Station Hacks . | . . . Recycling Unit Hacks 1 | . 1 . Recycle Component 1 | . 1 . Scanalyzer . | . . . Garrison Access Hacks . | . . . Unauthorized Hacks . | . . . Terminals . | . . . Fabricators . | . . . Repair Stations . | . . . Recycling Units . | . . . Scanalyzers . | . . . Garrison Access . | . . . Data Cores Recovered 1 | . 1 . Used 1 | . 1 . Hacking Detections 3 | . 2 1 Full Trace Events 2 | . 2 . Feedback Events . | . . . Feedback Blocked . | . . . Robot Schematics Acquired . | . . . Robots Built . | . . . Authchips . | . . . Time . | . . . Total Robot Build Rating . | . . . Part Schematics Acquired . | . . . Parts Built . | . . . Authchips . | . . . Time . | . . . Total Part Build Rating . | . . . Parts Repaired . | . . . Time . | . . . Parts Recycled 1 | . 1 . Recycled Matter . | . . . Retrieved Matter . | . . . Retrieved Components . | . . . Parts Scanalyzed . | . . . Part Schematics Acquired . | . . . Parts Damaged . | . . . Bothacking | -11 -10 -9 ------------ Run | Yrd Mat Mat Used RIF Installer . | . . . Robots Hacked . | . . . Non-combat . | . . . Combat . | . . . Robot Hacks Applied . | . . . Relay Couplers Released . | . . . Fabnet Peak Effective % . | . . . Robots Rewired . | . . . Allies Hacked . | . . . Hacks Repelled . | . . . Allies | -11 -10 -9 -------- Run | Yrd Mat Mat Total Allies . | . . . Largest Group . | . . . Highest-Rated Group . | . . . Highest-Rated Ally . | . . . Total Orders . | . . . Ally Attacks . | . . . Total Damage . | . . . Kills . | . . . Allies Corrupted . | . . . Allies Melted . | . . . Intel | -11 -10 -9 ------- Run | Yrd Mat Mat Robot Analysis Total . | . . . Derelict Logs Recovered . | . . . Drone Launches . | . . . Drone Recoveries . | . . . Exploration | -11 -10 -9 ------------- Run | Yrd Mat Mat Turns Passed 1016 | 230 366 420 Spaces Moved 570 | 190 211 169 Core 56 | 51 . 5 Treads . | . . . Legs 509 | 134 211 164 Wheels 5 | 5 . . Hover . | . . . Flight . | . . . Fastest Speed 50 | 50 120 190 Average Speed 148 | 100 138 214 Slowest Speed 350 | 120 190 350 Overloaded Moves . | . . . Propulsion Burnouts . | . . . Robots Hopped . | . . . Cave-ins Triggered . | . . . Exploration Rate (%) 18 | 10 25 20 Regions Visited 2 Branch Regions . Pre-discovered Areas . | . . . Known Exits Taken . | . . . Unknown Exits Taken 2 | 1 1 . Scrap Searched . | . . . Spaces Dug . | . . . Terrain Destroyed 158 | . 98 60 Melee . | . . . Projectile . | . . . AOE 158 | . 98 60 Terrain Rammed . | . . . Walls Destroyed . | . . . Machines Disabled . | . . . Actions | -11 -10 -9 --------- Run | Yrd Mat Mat Total 681 | 217 263 201 Wait 13 | 1 5 7 Move 568 | 189 210 169 Hop . | . . . Pick Up 25 | 8 13 4 Fast Attach 1 | . 1 . Attach 14 | 7 5 2 Detach 5 | 2 3 . Swap 2 | . 2 . Drop 9 | 2 7 . Fire 43 | 8 17 18 Melee . | . . . Ram . | . . . Kick 1 | . . 1 Crush . | . . . Escape Stasis . | . . . Rewire . | . . . Trap . | . . . Miscellaneous . | . . . Route ------- -11/Scrapyard -10/Materials -9/Materials History --------- Turn | Location | Event 2 | -11/Scrapyard | Met Revision 17 98 | -11/Scrapyard | Discovered new exit (range 8) 231 | -11/Scrapyard | Entered Materials 314 | -10/Materials | Build established: Mutant 452 | -10/Materials | Discovered new exit (range 17) 597 | -10/Materials | Entered another Materials area 597 | -9/Materials | Evolved 2 slots: Power x1, Utility x1 904 | -9/Materials | Core integrity fell below 50% 928 | -9/Materials | Core integrity fell below 20% 1017 | -9/Materials | Destroyed by G-34 Mercenary with Small Laser Last Messages --------------- U-05 Engineer lays Concrete. U-05 Engineer builds a Wall. U-05 Engineer lays Concrete. Acquired Hover Unit. U-05 Engineer lays Concrete. U-05 Engineer builds a Wall. U-05 Engineer lays Concrete. U-05 Engineer builds a Wall. U-05 Engineer lays Concrete. U-05 Engineer builds a Wall. U-05 Engineer lays Concrete. Aluminum Leg destroyed. U-05 Engineer lays Concrete. U-05 Engineer builds a Door. U-05 Engineer lays Concrete. U-05 Engineer builds a Wall. U-05 Engineer lays Concrete. The unstable cave ceiling collapses. U-05 Engineer lays Concrete. [Achievement: First Step to Greatness] Map ----- +----------------------------------------------------+ | ??????????????????????????????????????? | | ??????????????????????????????????????? | | ??????????????????????????????????????? | | ??????????????????????????????????????? | | ??????????????????????????????????????? | | ??????????????????????????????????????? | | ??????????????????????????????????????? | | ??????????????????????????????????????? | | ??????????????????????????????????????? | | ??????????????????????????????????????? | | ??????????????????????????????????????? | | ??????????????????????????????????????? | | ??????????????????????????????????????? | | ??????????????????????????????????????? | | ??????#???????????????????????????????? | | ??????# ???#####??????????????????????? | | ??????# ? #??????????????????????? | | ??????# #??????????????????????? | | ??????# """" #??????????????????????? | | ??????# """" #??????????????????????? | | ??????# """" #?? ??????????????????? | | ??????# +?? ?????????????????? | | ??????+ #??!! ?????????????????? | | ??????# #??! ?????????????????? | | ????????# #??! ?????????????????? | | ????????# @#?? !??????????????????? | | ????????# #?#+##????#????????????? | | ????????# ###|##??? ????????????? | | ????????# g# # ###?"""????????????? | | ?????#### # # """????????????? | | ?????# w =# """ ???????????? | | ?????# + ????????? | | ?????# # ????????? | | ######## ##+### #??????? | | # ??# o # #?? ???????? | | # """ ## # #????######???????? | | # """ #^ # #?????????????????? | | # """ + u # #?????????????????? | | # """ # u # #?????????????????? | | # """ ## # #?????????????????? | | # ?# # #?????????????????? | | # ?# u ####?????????????????? | | # ??## ##????????????????????? | | ######## #?????????????????????? | | # T #= " " #?????????????????????? | | # """ #?????????????????????? | | # #?????????????????????? | | # #?????????????????????? | | # #?????????????????????? | | # ## ###+###?????????????????????? | +----------------------------------------------------+ Best States ------------- Heat Dissipation 45 Energy Generation 10 Energy Capacity 125 Matter Stores 256 Matter Capacity 300 Sight Range 18 Terrain Scan Density 10 Evasion (%) 55 Item Schematics ----------------- None Robot Schematics ------------------ None Fabricated ------------ Nothing Alien Tech Used ----------------- None Achievements -------------- Dynamic Key First Step to Greatness Let's See Who's Tougher One Hack Too Far Oops Shopping List Uninvited Guest Challenges ------------ None Game ------ Seed ReactiveDisposableShield Manual? 0 Play Time 00:19:24 Cumulative 0.2 hours Start 2024.04.01 @ 21:48:33 End 2024.04.01 @ 22:06:24 Sessions 1 Manual Loads 0 Difficulty Rogue Special Mode None Game No. 1 Rogue 1 Adventurer 0 Explorer 0 Win Type - Total 0 Types 0/0/0/0/0/0/0/0/0 Lore% 0 Gallery% 1 Achievement% 2 Wizard Run 0 Options --------- Layout 1 ASCII 0 Keyboard 0 Movement Mouse Keybinds 0 Fullscreen 1 Font 24/Smallcaps Map View 50x35 Zoom Use 0% Tactical HUD 0 Map Filters NONE Filters NONE Steam 1 RUN: 2d533157-fb5a-4bb8-8815-d8236a1c42d4